bitfinex/quotes_SOLUSD_20250130
["timestamp","ask_amount","ask_price","bid_price","bid_amount"]
[1738252646723,19.71695303,241.62,241.55,19.71695303]
[1738252646922,19.71695303,241.66,241.57,19.71695303]
[1738252648041,19.71695303,241.66,241.58,4.1394]
[1738252648239,20.49288751,241.68,241.59,19.71695303]
[1738252649437,20.49288751,241.68,241.6,4.139]
[1738252651020,19.71695303,241.64,241.6,4.139]
[1738252651225,0.77606674,241.63,241.55,19.71695303]
[1738252651523,0.77606674,241.63,241.56,4.1397]
[1738252651720,19.71695303,241.66,241.59,19.71695303]
[1738252652446,19.71695303,241.66,241.57,19.71695303]
[1738252652654,0.77600043,241.65,241.57,19.71695303]
[1738252652834,19.71695303,241.66,241.57,19.71695303]
[1738252653659,19.71695303,241.66,241.58,14.4879]
[1738252657761,19.71695303,241.64,241.58,4.1394]
[1738252657964,19.71695303,241.64,241.56,4.1397]
[1738252658766,19.71695303,241.6,241.55,4.1399]
[1738252659061,19.71695303,241.62,241.55,4.1399]
[1738252660054,19.71695303,241.62,241.54,4.1401]
[1738252660248,19.71695303,241.62,241.57,0.03]
[1738252660761,19.71695303,241.64,241.57,0.03]
[1738252660964,0.77609814,241.66,241.58,19.71695303]
[1738252660965,20.49305117,241.66,241.58,19.71695303]
[1738252661566,19.71695303,241.63,241.57,0.03]
[1738252663078,19.71695303,241.66,241.58,19.71695303]
[1738252663260,20.4928807,241.72,241.64,19.71695303]
[1738252663466,20.0,241.69,241.64,19.71695303]
[1738252663764,20.0,241.69,241.62,19.71695303]
[1738252664168,0.77582342,241.68,241.57,0.03]
[1738252664338,19.71695303,241.61,241.57,0.03]
[1738252664544,19.71695303,241.59,241.57,0.03]
[1738252665374,19.71695303,241.61,241.57,0.03]
[1738252665749,19.71695303,241.59,241.57,0.03]
[1738252667450,0.77620955,241.58,241.57,0.03]
[1738252670675,46.54435363,241.58,241.57,0.03]
[1738252671579,47.54435363,241.58,241.57,0.03]
[1738252671885,46.54435363,241.58,241.57,0.03]
[1738252673073,50.68375363,241.58,241.57,0.03]
[1738252673888,51.68375363,241.58,241.57,0.03]
[1738252675383,64.04004918,241.58,241.57,0.03]
[1738252675592,13.41184853,241.55,241.53,0.03]
[1738252675769,26.54472148,241.54,241.53,0.03]
[1738252676163,27.54472148,241.54,241.53,0.03]
[1738252676880,13.41184853,241.53,241.51,0.03]
[1738252677074,13.1329548,241.52,241.51,0.03]
[1738252677585,17.2733548,241.52,241.51,0.03]
[1738252677779,30.68520333,241.52,241.51,0.03]
[1738252677989,20.0,241.48,241.4,0.03]
[1738252678191,12.35629555,241.42,241.4,0.03]
[1738252678363,0.77677714,241.41,241.4,0.03]
[1738252678762,12.35629555,241.42,241.4,0.03]
[1738252679897,0.77676055,241.41,241.4,0.03]
[1738252681699,12.35629555,241.44,241.4,0.03]
[1738252681985,0.7767279,241.43,241.4,0.03]
[1738252682195,12.35629555,241.44,241.4,0.03]
[1738252682607,0.77672558,241.43,241.4,0.03]
[1738252683102,12.35629555,241.42,241.4,0.03]
[1738252683593,0.77672558,241.43,241.4,0.03]
[1738252684310,12.35629555,241.42,241.4,0.03]
[1738252684472,14.18877723,241.41,241.4,0.03]
[1738252685287,18.33107723,241.41,241.4,0.03]
[1738252686071,18.33107723,241.41,241.26,4.1448]
[1738252686072,20.0,241.36,241.26,4.1448]
[1738252686270,12.35629555,241.32,241.26,4.1448]
[1738252686768,0.77707496,241.31,241.26,4.1448]
[1738252689072,12.35629555,241.32,241.26,4.1448]
[1738252690196,13.1332858,241.38,241.3,12.35629555]
[1738252690701,20.0,241.37,241.3,12.35629555]
[1738252690910,13.13326785,241.38,241.31,0.24861179]
[1738252691115,0.7769723,241.38,241.31,0.24861179]
[1738252691290,13.13319075,241.4,241.32,16.50009555]
[1738252691613,12.35629555,241.38,241.32,4.1438]
[1738252691794,0.77693683,241.37,241.32,4.1438]
[1738252692416,12.35629555,241.34,241.26,12.60493567]
[1738252692592,0.77693683,241.37,241.26,12.60493567]
[1738252692593,12.35629555,241.32,241.27,4.1447]
[1738252693894,12.35629555,241.34,241.27,4.1447]
[1738252694198,12.35629555,241.32,241.27,4.1447]
[1738252696014,12.35629555,241.34,241.27,4.1447]
[1738252696319,12.35629555,241.34,241.27,4.1747]
[1738252696519,0.77702535,241.33,241.27,4.1747]
[1738252698020,12.35629555,241.34,241.27,4.1747]
[1738252698319,0.77702304,241.33,241.27,4.1747]
[1738252699196,12.35629555,241.32,241.27,4.1747]
[1738252700014,12.35629555,241.32,241.27,0.03]
[1738252700198,0.77705852,241.31,241.27,0.03]
[1738252700401,12.35629555,241.3,241.27,0.03]
[1738252701494,1.0,241.37,241.27,0.03]
[1738252701495,13.13341292,241.34,241.27,0.03]
[1738252701699,12.35629555,241.32,241.27,0.03]
[1738252702296,0.77706703,241.31,241.27,0.03]
[1738252703430,12.35629555,241.28,241.27,0.03]
[1738252705028,17.27805805,241.28,241.27,0.03]
[1738252706124,13.41184853,241.34,241.23,12.35629555]
[1738252706125,13.13358166,241.31,241.23,12.35629555]
[1738252706425,0.77728611,241.31,241.24,0.24895649]
[1738252706731,0.77728611,241.31,241.23,12.60525899]
[1738252707028,20.0,241.3,241.23,12.60525899]
[1738252707229,20.0,241.3,241.24,4.1452]
[1738252707821,12.35629555,241.31,241.23,0.24896344]
[1738252708127,13.13343635,241.29,241.22,4.1455]
[1738252708301,4.1438,241.33,241.22,4.1455]
[1738252708302,12.35629555,241.31,241.23,0.24903441]
[1738252708502,0.77712958,241.3,241.23,0.24903441]
[1738252708928,0.77712958,241.3,241.27,0.03]
[1738252711113,12.35629555,241.33,241.27,0.03]
[1738252711736,0.77704034,241.32,241.27,0.03]
[1738252712608,0.77706955,241.37,241.31,12.35629555]
[1738252712929,20.0,241.38,241.32,0.24856625]
[1738252713536,12.35629555,241.35,241.27,6.83867099]
[1738252713708,12.35629555,241.31,241.27,0.03]
[1738252714038,12.35629555,241.29,241.27,0.03]
[1738252714535,0.7771832,241.28,241.27,0.03]
[1738252715813,4.9216832,241.28,241.27,0.03]
[1738252722311,12.35629555,241.29,241.27,0.03]
[1738252722637,13.13360119,241.31,241.27,0.03]
[1738252722833,20.0,241.28,241.27,0.03]
[1738252723439,13.13360119,241.31,241.27,0.03]
[1738252723650,12.35629555,241.31,241.27,0.03]
[1738252724308,0.77713779,241.3,241.27,0.03]
[1738252726536,16.50069555,241.29,241.27,0.03]
[1738252726841,0.77726818,241.28,241.27,0.03]
[1738252728129,12.35629555,241.29,241.27,0.03]
[1738252729736,12.35629555,241.29,241.15,0.03]
[1738252729737,1.0,241.24,241.15,0.03]
[1738252729943,12.35629555,241.16,241.15,0.03]
[1738252731337,13.1339242,241.16,241.15,0.03]
[1738252732650,12.35629555,241.16,241.15,0.03]
[1738252733640,0.77757515,241.19,241.15,0.03]
[1738252734948,12.35629555,241.18,241.15,0.03]
[1738252737354,12.35629555,241.16,241.15,0.03]
[1738252741352,0.77758713,241.19,241.15,0.03]
[1738252741553,32.35629555,241.2,241.15,0.03]
[1738252742550,12.35629555,241.2,241.15,0.03]
[1738252742762,12.35629555,241.22,241.15,4.1767]
[1738252743058,12.35629555,241.22,241.15,4.42620812]
[1738252743352,12.35629555,241.2,241.15,4.1767]
[1738252744853,12.35629555,241.2,241.15,0.03]
[1738252745656,12.35629555,241.16,241.12,4.1472]
[1738252746036,12.35629555,241.18,241.13,0.24981379]
[1738252746350,12.35629555,241.18,241.12,4.1472]
[1738252747355,12.35629555,241.16,241.12,4.1472]
[1738252748236,12.35629555,241.16,241.1,4.1476]
[1738252749528,12.35629555,241.16,241.06,4.1481]
[1738252749529,12.35629555,241.11,241.06,4.1481]
[1738252749729,12.35629555,241.07,241.06,4.1481]
[1738252750459,12.35629555,241.09,241.06,4.1481]
[1738252750665,7.93620264,241.1,241.05,4.1485]
[1738252750833,7.93620264,241.1,241.07,0.25017899]
[1738252751035,7.93620264,241.14,241.07,0.25017899]
[1738252751534,7.93620264,241.14,241.08,7.93620264]
[1738252751760,7.93620264,241.14,241.09,0.24990778]
[1738252752262,7.93620264,241.16,241.1,4.1476]
[1738252752583,12.39141999,241.18,241.11,12.64123847]
[1738252753470,12.39141999,241.14,241.1,4.1476]
[1738252753843,12.39141999,241.12,241.07,4.1481]
[1738252754148,12.39141999,241.12,241.08,0.25008962]
[1738252754540,0.77768012,241.19,241.08,0.25008962]
[1738252754541,12.39141999,241.14,241.09,4.1478]
[1738252754760,12.39141999,241.14,241.1,0.24984469]
[1738252754963,12.39141999,241.14,241.09,4.39765313]
[1738252755757,12.39141999,241.14,241.09,4.1478]
[1738252756649,12.39141999,241.14,241.07,4.1481]
[1738252756957,12.39141999,241.14,241.08,0.24998468]
[1738252757665,12.39141999,241.14,241.1,0.03]
[1738252757866,12.39141999,241.16,241.1,0.03]
[1738252759559,12.39141999,241.18,241.1,0.27986997]
[1738252759767,12.39141999,241.18,241.11,12.39141999]
[1738252759963,13.168904,241.22,241.13,12.39141999]
[1738252760271,12.39141999,241.22,241.15,12.39141999]
[1738252760456,13.16879062,241.24,241.16,0.24947063]
[1738252760655,12.39141999,241.24,241.17,12.39141999]
[1738252760972,12.39141999,241.24,241.18,4.39556578]
[1738252761382,12.39141999,241.24,241.18,4.1462]
[1738252761543,12.39141999,241.22,241.16,4.39590975]
[1738252761855,12.39141999,241.18,241.14,4.1469]
[1738252762865,12.39141999,241.18,241.11,4.1474]
[1738252763075,12.39141999,241.18,241.12,0.24964053]
[1738252765599,12.39141999,241.16,241.11,0.24970824]
[1738252766289,12.39141999,241.16,241.11,4.39710824]
[1738252767074,12.39141999,241.18,241.11,4.39710824]
[1738252767675,12.39141999,241.16,241.11,4.39710824]
[1738252769202,12.39141999,241.18,241.11,4.39710824]
[1738252770315,12.39141999,241.2,241.11,4.39710824]
[1738252770978,12.39141999,241.2,241.12,12.39141999]
[1738252771173,12.39141999,241.2,241.13,0.24955483]
[1738252771379,12.39141999,241.18,241.13,0.24955483]
[1738252772385,12.39141999,241.18,241.14,4.1469]
[1738252772582,12.39141999,241.2,241.15,0.24964185]
[1738252773108,12.39141999,241.26,241.18,12.39141999]
[1738252773295,12.39141999,241.26,241.19,0.24928294]
[1738252773495,12.39141999,241.26,241.17,0.24926666]
[1738252774012,0.063,241.27,241.2,12.39141999]
[1738252774319,0.063,241.27,241.22,12.39141999]
[1738252774524,0.063,241.27,241.23,4.39435113]
[1738252774882,0.063,241.27,241.24,12.39141999]
[1738252775110,0.063,241.27,241.25,0.24880919]
[1738252775407,0.063,241.27,241.26,12.39141999]
[1738252775711,0.063,241.27,241.25,0.24880919]
[1738252776600,0.063,241.27,241.23,0.24891731]
[1738252776811,12.39141999,241.26,241.21,0.24907215]
[1738252776984,12.39141999,241.26,241.21,4.39477215]
[1738252777303,0.063,241.27,241.21,4.39477215]
[1738252778486,0.063,241.27,241.22,12.39141999]
[1738252778685,0.063,241.27,241.23,0.24891861]
[1738252778883,0.063,241.27,241.24,12.39141999]
[1738252779087,0.063,241.27,241.25,0.24881611]
[1738252779388,0.063,241.27,241.26,12.39141999]
[1738252779805,0.063,241.27,241.25,0.24881611]
[1738252780112,0.063,241.27,241.26,12.39141999]
[1738252780595,0.063,241.27,241.26,4.1449]
[1738252782397,0.063,241.27,241.26,16.53631999]
[1738252783086,0.0001,241.27,241.26,16.53631999]
[1738252784221,0.063,241.37,241.26,29.94816852]
[1738252784423,0.063,241.37,241.32,12.39141999]
[1738252784715,0.063,241.37,241.36,12.39141999]
[1738252785903,0.063,241.37,241.34,12.39141999]
[1738252786085,0.063,241.37,241.35,0.24811968]
[1738252786285,0.063,241.37,241.36,16.53451999]
[1738252787721,0.063,241.37,241.35,0.24811968]
[1738252787895,0.063,241.37,241.34,4.1433]
[1738252788094,0.063,241.37,241.35,0.24828273]
[1738252788713,12.45441999,241.37,241.33,0.24823216]
[1738252788923,12.45441999,241.37,241.31,0.24844577]
[1738252789718,0.063,241.37,241.34,12.39141999]
[1738252789923,0.063,241.37,241.35,0.24809869]
[1738252790491,0.063,241.37,241.32,12.39141999]
[1738252790492,12.45441999,241.37,241.31,0.2482379]
[1738252790802,12.39141999,241.33,241.29,0.24846506]
[1738252790993,12.39141999,241.31,241.27,0.24860625]
[1738252791198,12.39141999,241.31,241.26,0.24883308]
[1738252792014,12.39141999,241.31,241.25,4.1449]
[1738252792718,1.5729,241.37,241.28,12.39141999]
[1738252792897,0.063,241.37,241.29,0.2484602]
[1738252793098,0.063,241.37,241.31,12.39141999]
[1738252793311,0.063,241.37,241.32,0.24834972]
[1738252793496,20.063,241.37,241.32,0.24834972]
[1738252794125,20.063,241.37,241.33,4.1437]
[1738252794507,20.063,241.37,241.34,0.24837287]
[1738252795215,0.063,241.37,241.34,0.24837287]
[1738252795689,0.063,241.37,241.29,0.24830383]
[1738252795895,0.063,241.37,241.31,4.1439]
[1738252796211,0.063,241.37,241.32,4.39212943]
[1738252796599,0.063,241.37,241.32,0.24842943]
[1738252796600,12.39141999,241.36,241.32,0.24842943]
[1738252796916,12.39141999,241.36,241.26,0.03]
[1738252796917,12.39141999,241.34,241.26,0.03]
[1738252797117,12.39141999,241.3,241.26,0.03]
[1738252797620,12.39141999,241.32,241.26,0.03]
[1738252797933,12.39141999,241.36,241.28,12.39141999]
[1738252798105,0.063,241.37,241.3,12.39141999]
[1738252798300,0.063,241.37,241.31,4.39242559]
[1738252799206,0.83987096,241.37,241.29,4.1442]
[1738252799410,0.83987096,241.37,241.3,4.39266267]
[1738252800335,0.063,241.37,241.3,4.39266267]
[1738252800699,0.063,241.37,241.3,16.53551999]
[1738252801416,0.063,241.37,241.26,10.3922]
[1738252801643,0.063,241.37,241.31,12.39141999]
[1738252801815,0.063,241.37,241.33,12.39141999]
[1738252802036,0.063,241.37,241.35,12.39141999]
[1738252802236,0.063,241.37,241.32,1.78123855]
[1738252803011,0.063,241.37,241.35,12.39141999]
[1738252803438,0.063,241.37,241.36,4.1431]
[1738252803730,0.83985436,241.4,241.37,12.39141999]
[1738252803931,0.063,241.4,241.35,12.39141999]
[1738252804137,0.063,241.4,241.37,12.39141999]
[1738252805330,0.063,241.4,241.35,12.39141999]
[1738252805530,0.83985427,241.4,241.34,4.1434]
[1738252805737,0.063,241.4,241.38,12.39141999]
[1738252806227,0.063,241.4,241.39,0.24800885]
[1738252806635,0.063,241.51,241.4,0.12549]
[1738252806827,0.063,241.51,241.46,12.39141999]
[1738252807014,0.063,241.51,241.47,0.2474182]
[1738252807341,0.063,241.51,241.48,12.39141999]
[1738252807538,0.063,241.51,241.5,4.1407]
[1738252807840,0.063,241.51,241.5,16.53211999]
[1738252808816,0.063,241.51,241.5,23.89939544]
[1738252809328,0.063,241.52,241.5,23.89939544]
[1738252809532,0.0001,241.52,241.51,0.24691361]
[1738252810218,0.0001,241.53,241.52,17.67773853]
[1738252810528,0.0001,241.53,241.52,57.19512941]
[1738252810729,0.063,241.62,241.56,0.12549]
[1738252810909,0.063,241.62,241.61,19.75869544]
[1738252811311,0.063,241.65,241.62,0.12549]
[1738252811538,0.063,241.65,241.64,23.89699544]
[1738252811912,19.75869544,241.75,241.65,0.12549]
[1738252812119,0.063,241.76,241.71,19.75869544]
[1738252812340,0.063,241.76,241.73,19.75869544]
[1738252812513,0.063,241.76,241.75,19.75869544]
[1738252812828,0.063,241.76,241.74,0.24571973]
[1738252812829,19.82169544,241.76,241.74,0.24571973]
[1738252813040,0.063,241.76,241.68,0.24602031]
[1738252813335,19.75869544,241.74,241.68,0.24602031]
[1738252813522,19.75869544,241.72,241.66,0.24592809]
[1738252813719,19.75869544,241.72,241.66,4.38382809]
[1738252814132,19.82169544,241.76,241.67,19.75869544]
[1738252814327,19.82169544,241.76,241.68,0.24590993]
[1738252815307,0.063,241.76,241.71,19.75869544]
[1738252815517,19.82169544,241.76,241.69,19.75869544]
[1738252815756,19.82169544,241.76,241.68,0.24574138]
[1738252815757,6.28664738,241.72,241.7,0.24598391]
[1738252817536,6.28664738,241.72,241.7,4.38318391]
[1738252817835,6.28664738,241.72,241.71,19.75869544]
[1738252818546,6.28664738,241.72,241.71,19.88418544]
[1738252818919,6.28664738,241.72,241.71,19.75869544]
[1738252819642,6.28664738,241.72,241.71,33.29603397]
[1738252820435,0.063,241.76,241.71,33.29603397]
[1738252820624,0.063,241.76,241.75,19.88418544]
[1738252820825,0.063,241.76,241.75,19.75869544]
[1738252821220,0.063,241.76,241.72,0.24543784]
[1738252822848,0.063,241.76,241.75,19.75869544]
[1738252823047,0.063,241.76,241.75,20.00417379]
[1738252823225,0.063,241.76,241.75,20.12966379]
[1738252823546,0.063,241.76,241.75,20.00417379]
[1738252823720,0.063,241.76,241.75,0.24547835]
[1738252824042,0.063,241.76,241.74,0.24571165]
[1738252824252,19.75869544,241.75,241.68,0.2458844]
[1738252824459,19.75869544,241.73,241.7,0.2458844]
[1738252824757,19.75869544,241.75,241.7,0.2458844]
[1738252825322,19.75869544,241.75,241.69,0.2460028]
[1738252825626,19.75869544,241.71,241.64,4.38434344]
[1738252825831,19.75869544,241.73,241.65,19.75869544]
[1738252826123,0.063,241.76,241.71,19.75869544]
[1738252826425,0.063,241.76,241.75,19.75869544]
[1738252827526,0.063,241.76,241.75,19.88418544]
[1738252827738,0.0001,241.76,241.75,33.54136967]
[1738252827963,0.0001,241.76,241.75,37.67786967]
[1738252828252,0.063,241.87,241.86,8.39108]
[1738252828555,1.719227,242.01,241.92,13.53733853]
[1738252828850,1.719227,242.01,241.96,33.17054397]
[1738252828851,0.063,242.01,241.96,33.17054397]
[1738252829148,0.0001,241.97,241.96,33.42152397]
[1738252829348,0.0001,241.97,241.96,34.42152397]
[1738252829646,0.0001,241.97,241.96,33.53967387]
[1738252829831,0.0001,241.97,241.96,34.53967387]
[1738252830024,0.063,242.01,241.99,0.12549]
[1738252830224,0.063,242.01,241.98,1.0]
[1738252830225,0.063,242.04,242.0,36.53412543]
[1738252830430,0.0001,242.04,242.03,40.51739088]
[1738252830629,0.0001,242.05,242.04,13.41184853]
[1738252831031,0.0001,242.05,242.03,20.00195129]
[1738252831633,0.0001,242.05,242.04,14.53733853]
[1738252831837,0.0001,242.05,242.04,13.41184853]
[1738252832062,0.0001,242.05,242.04,33.17054397]
[1738252832357,0.0001,242.05,242.04,13.41184853]
[1738252832727,0.0001,242.05,242.04,13.53733853]
[1738252832934,0.0001,242.05,242.04,34.42152397]
[1738252833354,0.0001,242.05,242.04,46.85152397]
[1738252833637,0.0001,242.05,242.04,34.42152397]
[1738252833868,0.063,242.1,242.08,13.66282853]
[1738252834034,0.063,242.1,242.09,20.12707027]
[1738252834445,0.063,242.1,242.09,33.5389188]
[1738252836565,0.063,242.1,242.09,20.00158027]
[1738252836748,0.063,242.1,242.09,0.24288483]
[1738252836935,19.82169544,242.1,242.03,19.75869544]
[1738252837134,19.82169544,242.1,241.96,0.24366358]
[1738252837135,23.95229544,242.1,242.01,19.75869544]
[1738252837357,23.95229544,242.1,242.03,19.75869544]
[1738252837973,20.0,242.08,242.03,19.75869544]
[1738252838768,0.063,242.1,242.03,19.75869544]
[1738252839072,0.063,242.1,242.09,19.75869544]
[1738252840846,0.063,242.1,242.07,20.00203895]
[1738252841645,0.063,242.1,242.05,19.75869544]
[1738252841962,0.063,242.1,242.03,19.75869544]
[1738252841963,24.1306,242.09,242.03,19.75869544]
[1738252842464,0.063,242.1,242.07,19.75869544]
[1738252842668,0.063,242.1,242.08,0.24347479]
[1738252843640,0.063,242.1,242.07,19.75869544]
[1738252844574,0.063,242.1,242.05,19.75869544]
[1738252844753,0.063,242.1,242.06,0.2436758]
[1738252845154,0.063,242.1,242.04,0.03]
[1738252845155,19.82169544,242.1,242.04,0.03]
[1738252845350,23.95229544,242.1,242.04,0.03]
[1738252845561,19.75869544,242.08,242.04,0.03]
[1738252846450,20.0,242.05,242.04,0.03]
[1738252846655,19.75869544,242.06,242.04,0.03]
[1738252846862,23.88989544,242.06,242.04,0.03]
[1738252848058,0.063,242.1,242.04,19.78869544]
[1738252848262,0.063,242.1,242.07,19.75869544]
[1738252848949,20.0,242.09,242.07,19.75869544]
[1738252849181,20.0,242.09,242.05,19.75869544]
[1738252849763,0.063,242.1,242.05,19.75869544]
[1738252849969,20.0,242.09,242.05,19.75869544]
[1738252850877,0.77452679,242.09,242.04,0.03]
[1738252851053,19.75869544,242.08,242.04,0.03]
[1738252851252,24.72693948,242.1,242.04,0.03]
[1738252851564,0.063,242.1,242.05,19.75869544]
[1738252851884,0.063,242.1,242.07,19.75869544]
[1738252852171,0.063,242.1,242.08,0.2435994]
[1738252852577,0.063,242.1,242.07,19.75869544]
[1738252852788,0.063,242.1,242.09,19.75869544]
[1738252854183,0.063,242.1,242.07,19.75869544]
[1738252854550,0.063,242.1,242.08,0.24364438]
[1738252854746,0.063,242.1,242.09,19.75869544]
[1738252855153,0.063,242.1,242.07,19.75869544]
[1738252855352,4.1935,242.1,242.05,19.75869544]
[1738252856159,4.1935,242.1,242.04,0.03]
[1738252856560,19.75869544,242.08,242.04,0.03]
[1738252856956,20.53330166,242.08,242.04,0.03]
[1738252857177,23.88949544,242.08,242.04,0.03]
[1738252857665,24.66411934,242.08,242.04,0.03]
[1738252858072,19.75869544,242.06,242.04,0.03]
[1738252858257,20.53341161,242.06,242.04,0.03]
[1738252859176,24.66461161,242.06,242.04,0.03]
[1738252859577,6.4613,242.05,242.04,0.03]
[1738252859781,6.58679,242.05,242.04,0.03]
[1738252861285,6.4613,242.05,242.04,0.03]
[1738252862784,7.23609855,242.05,242.04,0.03]
[1738252864877,11.36739855,242.05,242.04,0.03]
[1738252865084,20.0,242.02,241.9,19.75869544]
[1738252865383,20.53365944,242.01,241.92,19.75869544]
[1738252865789,20.0,242.0,241.94,19.75869544]
[1738252866082,0.7748131,241.99,241.94,19.75869544]
[1738252866283,0.7748131,241.99,241.92,24.13645102]
[1738252866468,20.0,241.96,241.88,19.75869544]
[1738252866667,20.0,241.96,241.88,23.89279544]
[1738252866668,20.7750318,241.96,241.88,23.89279544]
[1738252866983,20.7750318,241.96,241.88,19.75869544]
[1738252867183,20.0,241.92,241.86,19.75869544]
[1738252867380,19.75869544,241.91,241.82,19.75869544]
[1738252867883,19.75869544,241.91,241.8,4.38086724]
[1738252867884,20.0,241.86,241.8,19.75869544]
[1738252868195,0.77534396,241.85,241.8,19.75869544]
[1738252868367,20.0,241.8,241.79,0.03]
[1738252868563,0.77549223,241.8,241.79,0.03]
[1738252869803,20.0,241.78,241.68,4.1376]
[1738252870005,20.0,241.78,241.74,19.75869544]
[1738252870297,20.0,241.76,241.7,19.75869544]
[1738252870469,0.77568907,241.75,241.7,19.75869544]
[1738252871382,39.75869544,241.77,241.7,20.0047982]
[1738252871579,0.77558916,241.85,241.75,19.75869544]
[1738252871878,0.77544653,241.85,241.79,19.75869544]
[1738252872302,19.75869544,241.83,241.73,0.24553804]
[1738252872510,19.75869544,241.79,241.74,4.1366]
[1738252872874,19.75869544,241.79,241.65,0.03]
[1738252872875,19.75869544,241.77,241.68,19.75869544]
[1738252873211,0.77571132,241.76,241.68,19.75869544]
[1738252873709,19.75869544,241.73,241.66,23.89669544]
[1738252873940,19.75869544,241.69,241.65,0.03]
[1738252874201,19.75869544,241.7,241.65,4.1681]
[1738252874410,0.77588876,241.75,241.65,0.03]
[1738252874411,19.75869544,241.68,241.65,0.03]
[1738252874575,4.1364,241.76,241.65,0.03]
[1738252874576,19.75869544,241.66,241.65,0.03]
[1738252877480,0.77603852,241.69,241.65,0.03]
[1738252877705,0.12549,241.71,241.65,0.03]
[1738252877706,19.75869544,241.7,241.65,0.03]
[1738252877907,0.77589865,241.69,241.65,0.03]
[1738252878206,20.53456298,241.7,241.65,0.03]
[1738252878404,19.75869544,241.69,241.65,0.03]
[1738252878600,19.75869544,241.7,241.65,0.03]
[1738252878823,19.75869544,241.66,241.65,0.03]
[1738252879637,20.53484816,241.66,241.65,0.03]
[1738252880125,26.64444816,241.66,241.65,0.03]
[1738252880426,41.65959669,241.66,241.65,0.03]
[1738252881621,41.78508669,241.66,241.65,0.03]
[1738252881822,21.0,241.62,241.51,4.1406]
[1738252882125,19.75869544,241.6,241.52,20.00584805]
[1738252882427,0.7762138,241.59,241.52,20.00584805]
[1738252882636,0.7762138,241.59,241.52,19.75869544]
[1738252882927,19.75869544,241.56,241.51,4.1406]
[1738252883428,19.75869544,241.57,241.51,4.1406]
[1738252883612,0.77631687,241.56,241.51,4.1406]
[1738252883806,19.75869544,241.57,241.51,4.38789796]
[1738252884001,19.75869544,241.59,241.51,24.1465934]
[1738252884223,0.77631687,241.63,241.57,19.75869544]
[1738252884407,0.77612616,241.64,241.57,19.75869544]
[1738252884730,19.75869544,241.61,241.53,20.00552524]
[1738252884935,0.77618124,241.6,241.53,20.00552524]
[1738252885119,20.53487673,241.62,241.55,19.75869544]
[1738252885923,20.53487673,241.62,241.56,4.1397]
[1738252886629,20.0,241.63,241.58,19.75869544]
[1738252886804,20.53479776,241.65,241.57,19.75869544]
[1738252887408,20.53479776,241.65,241.57,20.00551084]
[1738252887926,20.53479776,241.65,241.58,4.1394]
[1738252888133,19.75869544,241.63,241.58,4.1394]
[1738252888435,0.77609872,241.62,241.58,4.1394]
[1738252888728,0.77609854,241.7,241.61,19.75869544]
[1738252888951,0.77609854,241.7,241.64,19.75869544]
[1738252889114,20.59779398,241.7,241.63,19.75869544]
[1738252889734,19.75869544,241.64,241.51,19.75869544]
[1738252889917,19.75869544,241.59,241.56,4.1396]
[1738252890239,0.83913652,241.7,241.57,13.65885095]
[1738252891335,19.75869544,241.68,241.61,19.75869544]
[1738252891633,20.59783196,241.7,241.62,0.24653503]
[1738252892024,20.59783196,241.7,241.63,23.89719544]
[1738252892233,0.063,241.7,241.64,0.2465308]
[1738252892407,0.063,241.7,241.63,23.89719544]
[1738252894535,19.82169544,241.7,241.63,23.89719544]
[1738252894707,20.0,241.67,241.63,4.1385]
[1738252894914,19.75869544,241.64,241.56,4.1397]
[1738252895115,19.75869544,241.6,241.56,4.1397]
[1738252895408,19.75869544,241.66,241.58,19.75869544]
[1738252895614,0.83894563,241.7,241.59,0.24662063]
[1738252896046,0.83894563,241.7,241.55,0.03]
[1738252896047,20.0,241.62,241.55,0.03]
[1738252896348,20.77630444,241.61,241.55,0.03]
[1738252896516,4.139,241.6,241.55,0.03]
[1738252896710,19.75869544,241.56,241.55,0.03]
[1738252897813,39.64288088,241.56,241.55,0.03]
[1738252898055,19.75869544,241.49,241.48,0.02]